Cogmind - Beta 11.1 @@@ ROGUE MODE // 2022.05.05 @ 14:26:16 Player: Perseus Result: Destroyed by as-71598 with Assembled Focal Cannon Performance ------------- Evolutions (3) 1500 Regions Visited (14) 2800 Robots Destroyed (304) 1520 Value Destroyed (8525) 8525 Prototype IDs (74) 1480 Alien Tech Used (0) 0 Bonus (3722) 3722 TOTAL SCORE: 19547 Bonus ------- High Alert Combat Kills 1852 Follower Combat Kills 352 Entered Garrisons 200 Aligned with FarCom 300 Met Imprinter 300 Destroyed Z-Imprinter 1000 Friendly Fire -282 Cogmind --------- Core Integrity 0/700 Matter 186/300 Energy 95/100 System Corruption 0% Temperature Cool (12) Movement Hovering (130) Ox1 Location -7/Deep Caves Parts ------- > --- POWER (1) -------- Zionite Light DM Reactor > --- PROPULSION (2) --- Zionite Glidesys II > --- UTILITY (7) ------ Experimental Heat Sink Experimental Optical Array Improved Signal Interpreter Improved Armor Integrity Analyzer Thermal Shield > --- WEAPON (3) ------- Light EM Pulse Cannon Heavy Flail > --- INVENTORY (5) ---- Improved Deuterium Engine Zionite Biocell (600) Particle Charger Zionite Heavy Carapace Peak State ------------ > --- POWER ------------ Improved Deuterium Engine > --- PROPULSION ------- Zionite Glidesys II Zionite Glidesys II > --- UTILITY ---------- Experimental Heat Sink Experimental Optical Array Improved Signal Interpreter Experimental Terrain Scan Processor Improved Armor Integrity Analyzer Experimental Reaction Control System Thermal Shield > --- WEAPON ----------- Advanced Beam Rifle Zionite Laser-M Heavy Machine Gun > --- INVENTORY -------- Carbon-fiber Leg Titanium Leg Improved Sensor Array Gauss Rifle Gauss Cannon [Rating: 86] Favorites ----------- Power Improved Deuterium Engine Engine Improved Deuterium Engine Power Core Light Nuclear Core Reactor Zionite Light DM Reactor Propulsion Armored Huge Wheel Leg Improved Aluminum Leg Wheel Armored Huge Wheel Hover Unit Zionite Glidesys II Flight Unit Xenon Bombardment Thruster Utility Improved Signal Interpreter Device Weight Redist. System Storage Medium Storage Unit Processor Improved Signal Interpreter Hackware Hacking Suite Protection Improved Medium Armor Plating Weapon Cooled Pulse Rifle Energy Gun Cooled Pulse Rifle Energy Cannon Light EM Pulse Cannon Ballistic Gun Improved Assault Rifle Ballistic Cannon Assault Cannon Launcher Heavy Missile Launcher Special Weapon Remote Datajack Impact Weapon Heavy Flail Special Melee Weapon Datajack Build | -11 -10 -10 -9 -9 -9 -8 -8 -8 -8 -7 -7 -7 -7 -7 ------- Run | Scr Mat Min Mat Min Exi Min Mat Gar Mat Fac Low Low Zio Dee Slots Evolved 6 | . . . 2 . . . 2 . . 2 . . . . Power . | . . . . . . . . . . . . . . . Propulsion . | . . . . . . . . . . . . . . . Utility 5 | . . . 2 . . . 1 . . 2 . . . . Weapon 1 | . . . . . . . 1 . . . . . . . Parts Attached 511 | 7 29 15 83 14 1 4 48 35 27 118 43 36 18 33 Power 35 | 1 5 2 10 1 . . 2 1 2 5 4 . . 2 Engine 30 | 1 5 2 10 1 . . 2 1 2 2 3 . . 1 Core 4 | . . . . . . . . . . 3 1 . . . Reactor 1 | . . . . . . . . . . . . . . 1 Propulsion 18 | . . . . . . . . . . 8 . 5 3 2 Treads . | . . . . . . . . . . . . . . . Leg 5 | . . . . . . . . . . 3 . 1 1 . Wheel 8 | . . . . . . . . . . 2 . 4 2 . Hover 2 | . . . . . . . . . . . . . . 2 Flight 3 | . . . . . . . . . . 3 . . . . Utility 263 | 4 13 7 50 11 . 4 27 20 13 46 24 22 7 15 Device 165 | 3 7 4 27 8 . 2 13 14 11 30 18 17 2 9 Storage 12 | 1 1 . 2 . . . 2 . 1 2 . 1 . 2 Processor 12 | . . . 1 . . . 2 . . 5 . . 3 1 Hackware 3 | . . . . . . . 1 . . 1 . . 1 . Protection 71 | . 5 3 20 3 . 2 9 6 1 8 6 4 1 3 Artifact . | . . . . . . . . . . . . . . . Weapon 195 | 2 11 6 23 2 1 . 19 14 12 59 15 9 8 14 Energy Gun 76 | 1 5 3 11 . 1 . 7 6 4 25 5 1 3 4 Energy Cannon 4 | . . . . . . . . . . . 1 1 . 2 Ballistic Gun 44 | 1 4 1 5 1 . . 6 1 3 9 6 2 2 3 Ballistic Cannon 3 | . . . . . . . . . . 2 . 1 . . Launcher 26 | . . 1 3 . . . 3 5 4 6 2 1 . 1 Special Weapon 6 | . 1 1 . . . . . . . 2 . . 1 1 Impact Weapon 31 | . . . 2 . . . 3 2 1 15 1 2 2 3 Slashing Weapon . | . . . . . . . . . . . . . . . Piercing Weapon . | . . . . . . . . . . . . . . . Special Melee Weapon 5 | . 1 . 2 1 . . . . . . . 1 . . Unidentified Prototypes 19 | . . . . 1 . . 1 . . 7 . . 4 6 Corrupted Parts 1 | . . . . . . . . . . . . . 1 . System Corruption 1 | . . . . . . . . . . . . . 1 . Parts Lost 23 | . . 1 . . . 1 3 . . 3 3 . . 12 Power 4 | . . . . . . . . . . 2 1 . . 1 Propulsion 2 | . . . . . . . . . . . . . . 2 Utility 12 | . . 1 . . . 1 2 . . 1 1 . . 6 Weapon 5 | . . . . . . . 1 . . . 1 . . 3 Highest Loss Streak 8 | . . 1 . . . 1 3 . . 1 3 . . 8 To Critical Strikes . | . . . . . . . . . . . . . . . Average Slot Usage (%) 83 | . 58 70 75 76 77 76 79 80 80 87 91 91 82 91 Engine 6 | . 5 14 10 11 11 11 9 9 8 3 2 7 7 4 Core 1 | . . . . . . . . . . 3 4 . . . Wheel 3 | . . . . . . . . . . 2 7 7 7 2 Device 13 | . 12 12 19 30 33 30 17 10 17 14 12 12 7 15 Storage 8 | . 14 14 11 11 11 11 9 9 9 7 7 7 7 2 Processor 21 | . . . 9 2 . . 17 18 18 28 30 30 23 25 Protection 2 | . 1 1 2 . . 1 1 7 . 1 1 . 4 4 Energy Gun 10 | . 10 13 10 11 4 11 7 8 7 7 13 10 12 8 Ballistic Gun 10 | . 13 13 10 11 11 11 17 18 17 11 7 6 6 4 Naked Turns . | . . . . . . . . . . . . . . . Heaviest Build 262 | 8 16 14 21 24 16 23 26 29 35 72 71 262 231 231 Greatest Support 33 | 3 9 9 9 9 9 9 9 9 9 33 28 28 28 32 Greatest Overweight (x) 21 | 2 5 4 6 7 1 2 2 3 3 7 2 10 21 8 Average Overweight (x) 2 | 1 1 1 1 1 1 1 1 2 2 1 1 2 7 1 Largest Inventory Capacity 35 | 8 8 8 8 8 8 8 10 10 10 20 20 35 35 35 Average Capacity 17 | 7 8 8 8 8 8 8 9 10 10 11 20 21 35 16 Most Carried 35 | 7 8 8 8 8 8 8 10 10 10 20 20 26 33 35 Average Carried 16 | 4 7 7 7 7 7 7 9 9 9 10 19 20 31 15 Final Capacity 35 | 8 8 8 8 8 8 8 10 10 10 20 20 35 35 5 Final Carried 33 | 6 8 8 8 8 8 8 10 10 10 20 19 26 33 5 Class Distribution -------------------- 28% | Mutant 16% | Hauler-Mutant 16% | Skirmisher 12% | Scavenger-Mutant 7% | Commander-Mutant 4% | Scavenger-Skirmisher 3% | Hauler-Assassin Dominant Class ---------------- Mutant | -10/Materials Mutant | -10/Mines Scavenger-Mutant | -9/Materials Scavenger-Mutant | -9/Mines Scavenger-Mutant | -9/Exiles Scavenger-Mutant | -8/Mines Scavenger-Skirmisher | -8/Materials Skirmisher | -8/Garrison Skirmisher | -8/Materials Mutant | -7/Factory Mutant | -7/Lower Caves Commander-Mutant | -7/Lower Caves Hauler-Mutant | -7/Zion Commander-Mutant | -7/Deep Caves Resources | -11 -10 -10 -9 -9 -9 -8 -8 -8 -8 -7 -7 -7 -7 -7 ----------- Run | Scr Mat Min Mat Min Exi Min Mat Gar Mat Fac Low Low Zio Dee Matter Collected 8584 | 335 404 173 1183 171 21 38 1032 906 579 1949 687 564 190 352 Remotely . | . . . . . . . . . . . . . . . Salvage Created 10639 | 199 591 153 1658 121 . . 1876 955 1551 2320 792 258 58 107 Parts 631 | 18 54 18 116 7 . . 103 51 96 130 20 8 2 8 Haulers Intercepted 19 | . 2 . 6 . . . 6 . 4 1 . . . . Recyclers Shooed 7 | 1 . . 2 . . . 1 . 1 1 1 . . . Parts Field Recycled . | . . . . . . . . . . . . . . . Retrieved Matter . | . . . . . . . . . . . . . . . Parts Self-Destructed 18 | . . . . . . . . . . . 7 10 1 . Prevented 3 | . . . . . . . . . . . 3 . . . Kills | -11 -10 -10 -9 -9 -9 -8 -8 -8 -8 -7 -7 -7 -7 -7 ------- Run | Scr Mat Min Mat Min Exi Min Mat Gar Mat Fac Low Low Zio Dee Combat Hostiles Destroyed 199 | . 13 13 35 3 . . 23 28 20 37 13 10 . 4 Melee 2 | . . . 2 . . . . . . . . . . . Guns 112 | . 13 10 21 3 . . 12 14 8 19 6 2 . 4 Cannons 1 | . . . . . . . . . . . 1 . . . AOE 80 | . . 3 11 . . . 11 14 12 17 6 6 . . Classes Destroyed 22 | 3 5 . 3 1 . . 1 1 3 1 3 . . 1 Worker 22 | 2 3 . 2 1 . . 7 . 2 5 . . . . Builder 18 | . 2 . 3 . . . 5 . 5 3 . . . . Tunneler 7 | 5 1 . . . . . . . . 1 . . . . Hauler 19 | . 2 . 6 . . . 6 . 4 1 . . . . Recycler 15 | 1 . . 1 . . . 4 . 2 7 . . . . Minesweeper 1 | . . . . . . . . . . . 1 . . . Mechanic 2 | . . . . . . . . . 2 . . . . . Operator 3 | . . . 2 . . . 1 . . . . . . . Drone 1 | . . . . . . . . . 1 . . . . . Watcher 20 | . 2 . 4 . . . 5 . 4 5 . . . . Swarmer 58 | . 6 12 8 1 . . 4 9 5 4 4 5 . . Grunt 79 | . 7 1 17 1 . . 12 14 6 15 3 3 . . Brawler 6 | . . . . . . . 1 . 3 2 . . . . Duelist 10 | . . . . 1 . . 1 1 2 2 3 . . . Protector 3 | . . . 1 . . . . . . 2 . . . . Sentry 26 | . . . 9 . . . 5 3 3 3 2 1 . . Specialist 2 | . . . . . . . . 2 . . . . . . Hunter 2 | . . . . . . . . . 1 . . 1 . . Programmer 9 | . . . . . . . . . . 9 . . . . Packrat 3 | . . . . . . . . . . . 3 . . . Samaritan 3 | . . . . . . . . . . . 3 . . . Assembled 3 | . . . . . . . . . . . . . . 3 Mutant 1 | . . . . . . . . . . . 1 . . . Best Kill Streak 10 | 5 6 3 6 2 . . 7 6 10 9 7 3 . 2 Combat Bots Only 7 | . 3 3 6 1 . . 4 6 6 7 7 3 . 2 Max Kills in Single Turn 6 | 1 1 2 3 2 . . 5 3 6 4 2 3 . 1 Gunslinging 1 | . . . 1 . . . . 1 . . . . . . Exploded 4 | . . 2 3 . . . 3 3 4 3 2 3 . . Melee 1 | . . . 1 . . . . . . . . . . . Uniques/NPCs Destroyed 1 | . . . . . . . . . . . . . . 1 Z-Imprinter (-7/Deep Caves) Combat | -11 -10 -10 -9 -9 -9 -8 -8 -8 -8 -7 -7 -7 -7 -7 -------- Run | Scr Mat Min Mat Min Exi Min Mat Gar Mat Fac Low Low Zio Dee Damage Taken 7332 | . 362 323 1158 66 . 80 687 523 277 1052 907 328 . 1569 Core 1453 | . 66 58 318 12 . 32 99 118 38 175 188 42 . 307 Absorbed by Shields 24 | . . . 24 . . . . . . . . . . . Regen/Repaired (Parts) 562 | . 112 . 287 . . . 57 . . 106 . . . . Core Remaining (%) 53 | 100 . 50 . . . 9 . . 53 . . . . . Volleys Fired 752 | 27 70 30 136 16 . 3 84 63 41 145 76 23 7 31 Largest 3 | 1 2 2 2 2 . 2 3 3 3 3 3 3 1 3 Hottest 164 | 50 100 100 85 79 . 76 107 107 101 147 104 106 20 164 Shots Fired 1520 | 27 123 57 261 32 . 6 228 145 107 288 122 51 7 66 Gun 1382 | 27 121 54 253 32 . 6 216 126 87 251 108 33 3 65 Cannon 34 | . . . . . . . . . . 17 7 10 . . Launcher 94 | . . 2 8 . . . 12 19 20 18 7 8 . . Special 10 | . 2 1 . . . . . . . 2 . . 4 1 Kinetic 804 | 25 62 27 129 16 . 3 153 95 64 157 35 12 . 26 Thermal 574 | 2 58 28 124 16 . 3 63 31 . 111 73 23 3 39 Explosive 80 | . . 2 8 . . . 12 19 6 18 7 8 . . Electromagnetic 55 | . 3 . . . . . . . 37 . 7 8 . . Robot Hit Streak 30 | 7 13 8 29 10 . 4 29 30 10 21 17 20 4 5 Robot Miss Streak 8 | 6 4 4 7 2 . 1 5 4 4 8 3 2 3 6 Penetration Max 1 | . . . . . . . . 1 1 1 . . . . Secondary Targets 5 | . . . 1 . . . 2 1 . . 1 . . . Max Gunslinging Chain 1 | . . . 1 . . . 1 1 . . 1 . . . Shots Hit Robots 964 | 16 74 27 188 21 8 5 147 83 61 178 86 35 4 31 Core Hits 532 | 9 36 15 90 6 . 1 81 47 63 113 45 15 1 10 Critical Kills 5 | . . . 3 . . . 1 . . . 1 . . . Critical Parts Destroyed 6 | . . . 3 . . . . 2 . 1 . . . . Critical Strikes 44 | . 6 . 15 . . 1 7 4 . 2 4 3 . 2 Burn 31 | . 5 . 9 . . 1 6 2 . 1 3 3 . 1 Destroy 7 | . . . 2 . . . 1 2 . 1 1 . . . Corrupt 1 | . 1 . . . . . . . . . . . . . Smash 5 | . . . 4 . . . . . . . . . . 1 Melee Attacks 86 | . . . 10 . 8 . 5 5 1 40 2 5 . 10 Impact 76 | . . . 8 . . . 5 5 1 40 2 5 . 10 Slashing . | . . . . . . . . . . . . . . . Piercing . | . . . . . . . . . . . . . . . Sneak Attacks 15 | . . . 4 . 8 . . . . 3 . . . . Combat Hostiles . | . . . . . . . . . . . . . . . Follow-up Attacks . | . . . . . . . . . . . . . . . Damage Inflicted 24088 | 201 877 506 3468 289 . 50 3349 2605 2518 5738 2349 1298 63 777 Guns 14529 | 201 853 298 2376 289 . 50 2249 1484 999 3209 1405 501 63 552 Cannons 289 | . . . . . . . . . . . 117 172 . . Explosions 8230 | . . 208 850 . . . 1100 1121 1519 1980 827 625 . . Melee 1016 | . . . 242 . . . . . . 549 . . . 225 Ramming . | . . . . . . . . . . . . . . . Kinetic 7760 | 201 292 127 980 97 . 17 1475 1090 712 1922 480 145 . 222 Thermal 7126 | . 546 171 1396 192 . 33 774 394 478 1287 978 484 63 330 Explosive 6897 | . . 208 850 . . . 1100 1121 367 1980 774 497 . . Electromagnetic 1289 | . 39 . . . . . . . 961 . 117 172 . . Impact 1016 | . . . 242 . . . . . . 549 . . . 225 Slashing . | . . . . . . . . . . . . . . . Piercing . | . . . . . . . . . . . . . . . Highest Corruption 3 | . . . . . . . 1 1 1 3 . . 1 . Average Corruption 1 | . . . . . . . 1 1 1 1 . . 1 . Corruption Purged 7 | . . . . . . . . . 1 6 . . . . Corruption Blocked . | . . . . . . . . . . . . . . . Effects 30 | . . . . . . . 10 18 . 2 . . . . Message Errors 6 | . . . . . . . 2 2 . 2 . . . . Matter Fused 4 | . . . . . . . 1 3 . . . . . . Heat Flow Errors 4 | . . . . . . . 2 2 . . . . . . Energy Discharges 3 | . . . . . . . . 3 . . . . . . Data Loss (minor) 4 | . . . . . . . 2 2 . . . . . . Data Loss (major) 4 | . . . . . . . 1 3 . . . . . . Misfires 1 | . . . . . . . 1 . . . . . . . Alerts 3 | . . . . . . . 1 2 . . . . . . Weapon Failures 1 | . . . . . . . . 1 . . . . . . Overload Shots 4 | . . . . . . . . . . . . . . 4 Overflow Damage 689 | . . . 158 . . . 20 19 87 313 45 47 . . Projectiles . | . . . . . . . . . . . . . . . Explosions 253 | . . . 14 . . . 20 19 87 21 45 47 . . Melee 436 | . . . 144 . . . . . . 292 . . . . Knockbacks 4 | . . . . . . . . . . 4 . . . . Impact 4 | . . . . . . . . . . 4 . . . . Kinetic . | . . . . . . . . . . . . . . . Secondary . | . . . . . . . . . . . . . . . Self-Inflicted Damage 163 | . . . . . . . 36 33 14 . 80 . . . Shots 7 | . . . . . . . 2 1 2 . 2 . . . Rammed . | . . . . . . . . . . . . . . . Targets Rammed . | . . . . . . . . . . . . . . . Kicked . | . . . . . . . . . . . . . . . Crushed . | . . . . . . . . . . . . . . . Highest Temperature 329 | . 218 220 222 62 . 84 233 259 81 198 42 25 . 329 Average Temperature 54 | . 60 81 53 24 . 46 44 63 22 27 11 14 . 124 Received Heat Transfer 2035 | . 111 6 526 6 . . 252 126 144 192 195 114 . 363 Effects 1 | . . . . . . . . . . . . . . 1 Energy Bleed 1 | . . . . . . . . . . . . . . 1 Siege Activations . | . . . . . . . . . . . . . . . Robots Corrupted 1 | . . . . . . . . . . . . 1 . . Combat Hostiles 1 | . . . . . . . . . . . . 1 . . Parts Fried 11 | . . . 2 . . . . . 3 4 2 . . . Impact Corruptions 8 | . . . 2 . . . . . . 6 . . . . Robots Melted 1 | . . . . . . . . . . . . 1 . . Combat Hostiles 1 | . . . . . . . . . . . . 1 . . Parts Melted 25 | . . 1 8 1 . . 4 3 . 4 2 2 . . Heat Transferred 15988 | . 1817 481 3658 407 . 148 2072 962 750 2368 2011 988 111 215 Parts Sabotaged . | . . . . . . . . . . . . . . . Parts Stolen . | . . . . . . . . . . . . . . . Parts Stripped . | . . . . . . . . . . . . . . . Power Chain Reactions 12 | . . . . . . . . . 10 . 1 1 . . Missiles Intercepted . | . . . . . . . . . . . . . . . Alert | -11 -10 -10 -9 -9 -9 -8 -8 -8 -8 -7 -7 -7 -7 -7 ------- Run | Scr Mat Min Mat Min Exi Min Mat Gar Mat Fac Low Low Zio Dee Peak Influence 1744 | 40 293 278 886 590 . 93 425 1744 1208 1213 . . . . Initial 850 | . 26 63 100 265 . . 7 246 850 479 . . . . Average 556 | 17 143 176 507 406 . 63 245 1191 1076 463 . . . . Maximum Alert Level 5 | . 1 1 3 2 . . 2 5 4 4 . . . . Low Security (%) 16 | 100 61 45 6 . . 100 27 . . . . . . . Level 1 34 | . 38 54 9 66 . . 57 4 . 61 . . . . Level 2 21 | . . . 78 33 . . 14 9 . 22 . . . . Level 3 10 | . . . 5 . . . . 26 36 10 . . . . Level 4 13 | . . . . . . . . 37 63 5 . . . . Level 5 4 | . . . . . . . . 22 . . . . . . High Security . | . . . . . . . . . . . . . . . Max Security . | . . . . . . . . . . . . . . . Squads Dispatched 29 | . 1 1 5 . . . 3 . 3 16 . . . . Investigation 8 | . 1 1 2 . . . 2 . . 2 . . . . Extermination 7 | . . . . . . . . . . 7 . . . . Reinforcement 6 | . . . 2 . . . 1 . . 3 . . . . Assault 8 | . . . 1 . . . . . 3 4 . . . . Garrison . | . . . . . . . . . . . . . . . Intercept . | . . . . . . . . . . . . . . . Searches Triggered . | . . . . . . . . . . . . . . . Construction Impeded 1 | . . . . . . . . . . 1 . . . . Haulers Reinforced . | . . . . . . . . . . . . . . . Active Scanning Responses . | . . . . . . . . . . . . . . . Cargo Convoy Interrupts . | . . . . . . . . . . . . . . . Stealth | -11 -10 -10 -9 -9 -9 -8 -8 -8 -8 -7 -7 -7 -7 -7 --------- Run | Scr Mat Min Mat Min Exi Min Mat Gar Mat Fac Low Low Zio Dee Distress Signals 14 | . 3 . 3 . . . 4 . 4 . . . . . Communications Jammed . | . . . . . . . . . . . . . . . Distress Signals . | . . . . . . . . . . . . . . . Times Spotted 276 | . 24 14 51 16 . 1 34 27 33 49 12 10 . 5 Peak Tracking Total 9 | . 3 3 5 6 . 1 4 5 9 6 7 3 . 2 Tactical Retreats 12 | . 1 . 3 1 . . 3 1 1 . . 2 . . Traps | -11 -10 -10 -9 -9 -9 -8 -8 -8 -8 -7 -7 -7 -7 -7 ------- Run | Scr Mat Min Mat Min Exi Min Mat Gar Mat Fac Low Low Zio Dee Traps Triggered 12 | . 1 . 2 . . . 2 5 1 1 . . . . Indirectly . | . . . . . . . . . . . . . . . Trap Hack Attempts 23 | . 2 . 21 . . . . . . . . . . . Triggered . | . . . . . . . . . . . . . . . Disarmed 1 | . . . 1 . . . . . . . . . . . Reprogrammed 22 | . 1 . . . . . 11 . . 10 . . . . Reused 6 | . . 2 . . . . 3 . . . . . . 1 Traps Extracted 1 | . . . . . . . . . . . 1 . . . Installed 10 | . . 5 . . . . . . . . 2 . . 3 Triggered 5 | . . 2 . . . . 3 . . . . . . . Most Traps Carried 4 | . . 1 . . . . . . . . 4 3 3 3 Machines | -11 -10 -10 -9 -9 -9 -8 -8 -8 -8 -7 -7 -7 -7 -7 ---------- Run | Scr Mat Min Mat Min Exi Min Mat Gar Mat Fac Low Low Zio Dee Machines Disabled 26 | . . 2 2 . . . 4 3 5 4 3 . . 3 Max in Single Turn 2 | . . 2 1 . . . 1 2 2 1 1 . . 1 Garrison Access 1 | . . . . . . . . . . 1 . . . . Garrison Relay 1 | . . . . . . . . 1 . . . . . . Phase Generator 1 | . . . . . . . . 1 . . . . . . Machines Sabotaged . | . . . . . . . . . . . . . . . Garrisons Compromised . | . . . . . . . . . . . . . . . Overloaded Fab Kills . | . . . . . . . . . . . . . . . Hacking | -11 -10 -10 -9 -9 -9 -8 -8 -8 -8 -7 -7 -7 -7 -7 --------- Run | Scr Mat Min Mat Min Exi Min Mat Gar Mat Fac Low Low Zio Dee Machines Accessed 76 | . 11 1 14 2 1 . 13 . 5 26 2 1 . . Terminals 45 | . 8 1 10 1 . . 9 . 5 11 . . . . Fabricators 3 | . . . . . . . . . . 3 . . . . Repair Stations 7 | . 1 . 2 . . . 1 . . 3 . . . . Recycling Units 9 | . 2 . 1 . . . 1 . . 5 . . . . Scanalyzers 2 | . . . 1 . . . 1 . . . . . . . Garrison Access 5 | . . . . . . . 1 . . 4 . . . . Total Hacks 226 | . 37 5 49 4 1 . 45 . 16 60 8 1 . . Successful 132 | . 22 3 32 3 1 . 29 . 9 24 8 1 . . Failed 92 | . 14 2 16 1 . . 16 . 7 36 . . . . Catastrophic 18 | . 1 1 1 . . . 2 . 1 12 . . . . Database Lockouts 2 | . 1 . 1 . . . . . . . . . . . Manual 124 | . 25 5 25 3 1 . 23 . 11 31 . . . . Terminals 138 | . 25 5 28 3 . . 34 . 16 27 . . . . Fabricators 5 | . . . . . . . . . . 5 . . . . Repair Stations 26 | . 5 . 12 . . . 2 . . 7 . . . . Recycling Units 33 | . 7 . 8 . . . 4 . . 14 . . . . Scanalyzers 4 | . . . 1 . . . 3 . . . . . . . Garrison Access 9 | . . . . . . . 2 . . 7 . . . . Terminal Hacks 64 | . 11 3 13 3 1 . 11 . 6 7 8 1 . . Record 7 | . . . . . . . . . . . 7 . . . Robot Analysis 14 | . 3 3 2 2 . . 3 . 1 . . . . . Prototype ID Bank 9 | . 4 . 3 . . . 1 . 1 . . . . . Open Door 3 | . . . . 1 . . . . . . 1 1 . . Branch Access Points 2 | . . . . . . . 1 . . 1 . . . . Terminal Index 4 | . 1 . 1 . . . 1 . . 1 . . . . Unreport Threat 4 | . . . 2 . . . 1 . 1 . . . . . Locate Traps 11 | . . . 4 . . . 2 . 2 3 . . . . Reprogram Traps 4 | . . . . . . . 2 . . 2 . . . . Dispatch Records 1 | . 1 . . . . . . . . . . . . . Patrol Status 1 | . . . 1 . . . . . . . . . . . Transport Status 1 | . 1 . . . . . . . . . . . . . Hauler Manifests 2 | . 1 . . . . . . . 1 . . . . . EX-Prototype ID Bank 1 | . . . . . 1 . . . . . . . . . Fabricator Hacks . | . . . . . . . . . . . . . . . Repair Station Hacks 21 | . 4 . 10 . . . 2 . . 5 . . . . Scan Component 10 | . 2 . 5 . . . 1 . . 2 . . . . Repair 10 | . 2 . 5 . . . 1 . . 2 . . . . Refit 1 | . . . . . . . . . . 1 . . . . Recycling Unit Hacks 3 | . . . 2 . . . . . . 1 . . . . Retrieve Matter 2 | . . . 1 . . . . . . 1 . . . . Retrieve Components 1 | . . . 1 . . . . . . . . . . . Scanalyzer 3 | . . . . . . . 3 . . . . . . . Insert Component 1 | . . . . . . . 1 . . . . . . . Analyze 2 | . . . . . . . 2 . . . . . . . Garrison Access Hacks 2 | . . . . . . . 1 . . 1 . . . . Unlock Access 1 | . . . . . . . 1 . . . . . . . Seal Access 1 | . . . . . . . . . . 1 . . . . Unauthorized Hacks 39 | . 7 . 7 . . . 12 . 3 10 . . . . Terminals 21 | . 4 . 4 . . . 7 . 3 3 . . . . Track 2 | . 1 . 1 . . . . . . . . . . . Botnet 11 | . 2 . 2 . . . 3 . 2 2 . . . . Disrupt 3 | . . . . . . . 2 . . 1 . . . . Operators 5 | . 1 . 1 . . . 2 . 1 . . . . . Fabricators . | . . . . . . . . . . . . . . . Repair Stations . | . . . . . . . . . . . . . . . Recycling Units 17 | . 3 . 3 . . . 4 . . 7 . . . . Monitor 3 | . . . 1 . . . 1 . . 1 . . . . Reject 8 | . 2 . 1 . . . 1 . . 4 . . . . Recyclers 3 | . 1 . . . . . 1 . . 1 . . . . Mask 3 | . . . 1 . . . 1 . . 1 . . . . Scanalyzers . | . . . . . . . . . . . . . . . Garrison Access 1 | . . . . . . . 1 . . . . . . . Reprogram 1 | . . . . . . . 1 . . . . . . . Data Cores Recovered . | . . . . . . . . . . . . . . . Used . | . . . . . . . . . . . . . . . Hacking Detections 68 | . 11 1 13 1 . . 11 . 5 26 . . . . Full Trace Events 3 | . . 1 . . . . 1 . . 1 . . . . Feedback Events . | . . . . . . . . . . . . . . . Feedback Blocked . | . . . . . . . . . . . . . . . Robot Schematics Acquired . | . . . . . . . . . . . . . . . Robots Built . | . . . . . . . . . . . . . . . Authchips . | . . . . . . . . . . . . . . . Time . | . . . . . . . . . . . . . . . Total Robot Build Rating . | . . . . . . . . . . . . . . . Part Schematics Acquired 1 | . . . . . . . 1 . . . . . . . Parts Built . | . . . . . . . . . . . . . . . Authchips . | . . . . . . . . . . . . . . . Time . | . . . . . . . . . . . . . . . Total Part Build Rating . | . . . . . . . . . . . . . . . Parts Repaired 10 | . 2 . 5 . . . 1 . . 2 . . . . Time 298 | . 52 . 148 . . . 32 . . 66 . . . . Parts Recycled . | . . . . . . . . . . . . . . . Recycled Matter . | . . . . . . . . . . . . . . . Retrieved Matter 23 | . . . 23 . . . . . . . . . . . Retrieved Components 9 | . . . 9 . . . . . . . . . . . Parts Scanalyzed 1 | . . . . . . . 1 . . . . . . . Part Schematics Acquired 1 | . . . . . . . 1 . . . . . . . Parts Damaged . | . . . . . . . . . . . . . . . Bothacking | -11 -10 -10 -9 -9 -9 -8 -8 -8 -8 -7 -7 -7 -7 -7 ------------ Run | Scr Mat Min Mat Min Exi Min Mat Gar Mat Fac Low Low Zio Dee Used RIF Installer . | . . . . . . . . . . . . . . . Robots Hacked 9 | . . . 1 . 4 . . . . 2 . . 1 1 Non-combat 6 | . . . 1 . 3 . . . . 2 . . . . Combat 3 | . . . . . 1 . . . . . . . 1 1 Robot Hacks Applied 13 | . . . 1 . 8 . . . . 2 . . 1 1 parse_system 10 | . . . . . 8 . . . . . . . 1 1 no_distress 1 | . . . 1 . . . . . . . . . . . find_chute 2 | . . . . . . . . . . 2 . . . . Relay Couplers Released 8 | . . . . . . . . 4 . 4 . . . . Machine Destruction 4 | . . . . . . . . 4 . . . . . . Programmers 4 | . . . . . . . . . . 4 . . . . Fabnet Peak Effective % . | . . . . . . . . . . . . . . . Robots Rewired 5 | . . . . . . . . . . . 5 . . . Allies Hacked . | . . . . . . . . . . . . . . . Hacks Repelled . | . . . . . . . . . . . . . . . Allies | -11 -10 -10 -9 -9 -9 -8 -8 -8 -8 -7 -7 -7 -7 -7 -------- Run | Scr Mat Min Mat Min Exi Min Mat Gar Mat Fac Low Low Zio Dee Total Allies 18 | . . . . 3 . 3 3 . 3 . 5 . . 1 Largest Group 6 | . . . . 3 1 3 3 2 1 . 5 5 5 6 Highest-Rated Group 248 | . . . . 40 16 48 48 32 29 . 129 129 129 248 Highest-Rated Ally 119 | . . . . 16 16 16 16 16 29 . 31 31 31 119 Total Orders 109 | . . . . 27 . 36 1 . 13 . 8 5 7 12 STAY 29 | . . . . . . 2 1 . 3 . 5 4 4 10 ROAM 2 | . . . . . . . . . . . 1 . . 1 FOLLOW 7 | . . . . . . . . . . . 2 1 3 1 EXPLORE 46 | . . . . 19 . 17 . . 10 . . . . . RETURN 25 | . . . . 8 . 17 . . . . . . . . Ally Attacks 186 | . . . . 52 . 37 23 15 44 . . . . 15 Total Damage 1896 | . . . . 329 . 239 265 140 171 . . . . 752 Kills 28 | . . . . 9 . 5 3 4 2 . . . . 5 Allies Corrupted . | . . . . . . . . . . . . . . . Allies Melted . | . . . . . . . . . . . . . . . Intel | -11 -10 -10 -9 -9 -9 -8 -8 -8 -8 -7 -7 -7 -7 -7 ------- Run | Scr Mat Min Mat Min Exi Min Mat Gar Mat Fac Low Low Zio Dee Robot Analysis Total 14 | . 3 3 2 2 . . 3 . 1 . . . . . Derelict Logs Recovered 9 | . . 2 . 1 . . . . . . 3 2 1 . Drone Launches 107 | . . . . 27 . 38 . . 42 . . . . . Drone Recoveries 101 | . . . . 27 . 37 . . 37 . . . . . Exploration | -11 -10 -10 -9 -9 -9 -8 -8 -8 -8 -7 -7 -7 -7 -7 ------------- Run | Scr Mat Min Mat Min Exi Min Mat Gar Mat Fac Low Low Zio Dee Turns Passed 32995 | 151 1277 734 2076 662 541 525 2521 2944 1224 4024 4759 3495 5473 2589 Spaces Moved 17317 | 63 666 572 1100 530 522 246 1351 1299 469 2273 2440 2122 1343 2321 Core 7993 | 63 666 572 1100 530 522 246 1351 1299 469 1166 . . . 9 Treads . | . . . . . . . . . . . . . . . Legs 108 | . . . . . . . . . . 108 . . . . Wheels 7064 | . . . . . . . . . . 841 2440 2122 1343 318 Hover 1994 | . . . . . . . . . . . . . . 1994 Flight 158 | . . . . . . . . . . 158 . . . . Fastest Speed 50 | 50 100 50 100 100 100 100 100 150 150 100 115 120 205 56 Average Speed 132 | 125 128 100 100 100 100 143 146 167 194 133 122 139 211 86 Slowest Speed 400 | 150 300 250 350 400 100 150 150 200 200 400 130 240 395 350 Overloaded Moves . | . . . . . . . . . . . . . . . Propulsion Burnouts . | . . . . . . . . . . . . . . . Robots Hopped . | . . . . . . . . . . . . . . . Cave-ins Triggered . | . . . . . . . . . . . . . . . Exploration Rate (%) 79 | 3 98 91 81 98 95 99 83 88 37 49 99 94 87 88 Regions Visited 14 Branch Regions 8 Pre-discovered Areas 3 | . . . . . . . . . . . 1 . 2 . Known Exits Taken 7 | . . 1 . . . . 1 . 1 1 1 1 1 . Unknown Exits Taken 6 | 1 1 . 1 1 1 1 . . . . . . . . Scrap Searched 14 | . . 3 . 1 . 1 . . . . 4 1 4 . Spaces Dug 105 | . 1 1 2 . . . 5 16 1 34 13 23 . 9 Terrain Destroyed 788 | . 1 9 68 . . . 63 186 56 226 81 84 . 14 Melee 55 | . . . 2 . . . 5 5 1 30 2 5 . 5 Projectile 33 | . 1 1 . . . . . 8 1 5 6 2 . 9 AOE 699 | . . 8 66 . . . 58 173 54 191 72 77 . . Terrain Rammed . | . . . . . . . . . . . . . . . Walls Destroyed . | . . . . . . . . . . . . . . . Machines Disabled . | . . . . . . . . . . . . . . . Actions | -11 -10 -10 -9 -9 -9 -8 -8 -8 -8 -7 -7 -7 -7 -7 --------- Run | Scr Mat Min Mat Min Exi Min Mat Gar Mat Fac Low Low Zio Dee Total 25884 | 109 963 679 1786 626 537 412 1702 1932 688 2939 4082 2604 3982 2843 Wait 6659 | . 165 40 395 61 5 158 184 443 126 280 1445 392 2582 383 Move 17301 | 62 665 571 1099 529 521 245 1350 1296 468 2272 2439 2121 1342 2321 Hop . | . . . . . . . . . . . . . . . Pick Up 186 | 10 14 8 13 . 1 1 14 4 10 29 16 13 19 34 Fast Attach 83 | . 5 1 11 4 . . 5 1 6 32 2 6 . 10 Attach 77 | 6 6 3 3 . 1 2 4 7 4 9 6 1 13 12 Detach 25 | 2 4 . 1 1 . 1 . 6 . 6 . . 2 2 Swap 351 | 1 18 11 69 10 . 2 39 27 17 77 35 29 5 11 Drop 213 | 1 14 10 28 5 1 . 17 5 15 49 16 14 12 26 Fire 752 | 27 70 30 136 16 . 3 84 63 41 145 76 23 7 31 Melee 86 | . . . 10 . 8 . 5 5 1 40 2 5 . 10 Ram . | . . . . . . . . . . . . . . . Kick . | . . . . . . . . . . . . . . . Crush . | . . . . . . . . . . . . . . . Escape Stasis 75 | . . . . . . . . 75 . . . . . . Rewire 43 | . . . . . . . . . . . 43 . . . Trap 33 | . 2 5 21 . . . . . . . 2 . . 3 Miscellaneous . | . . . . . . . . . . . . . . . Route ------- -11/Scrapyard -10/Materials (discovered 5 exits: *Mat x3 / *Min x2) -10/Mines (discovered 2 exits: *Mat x2) -9/Materials (discovered 3 exits: *Mat x2 / *Min) -9/Mines (discovered 4 exits: *Mat x2 / *Exi / *Zio) -9/Exiles -8/Mines (discovered 2 exits: *Mat x2) -8/Materials (discovered 4 exits: *Fac x3 / Gar) -8/Garrison (discovered 3 exits: *Mat x3) -8/Materials -7/Factory (discovered 6 exits: *Fac x2 / Sto x2 / *Low x2) -7/Lower Caves -7/Lower Caves (discovered 2 exits: *Fac / *Zio) -7/Zion (discovered 2 exits: *Dee / [*Pro]) -7/Deep Caves (discovered 1 exit: [*Pro]) History --------- Turn | Location | Event 7 | -11/Scrapyard | Discovered new exit (range 16) 152 | -11/Scrapyard | Entered Materials 262 | -10/Materials | Discovered new exit (range 13) 313 | -10/Materials | Build established: Mutant 380 | -10/Materials | Discovered new exit (range 12) 389 | -10/Materials | Discovered new exit (range 8) 550 | -10/Materials | Discovered new exit (range 4) 730 | -10/Materials | Repaired Lgt. Armor Plating 1146 | -10/Materials | Central database locked down 1146 | -10/Materials | Discovered new exit (range 16) 1409 | -10/Materials | Repaired Lgt. Armor Plating 1429 | -10/Materials | Entered Mines 1511 | -10/Mines | Identified exit to Materials 1574 | -10/Mines | A weapon hastily lodged in a ceiling crevice suddenly fell to the ground 1678 | -10/Mines | Discovered exit to Materials (range 5) 1741 | -10/Mines | Found a hidden stash of uninstalled traps 1933 | -10/Mines | Received a Rocket Launcher from a helpful Derelict 2163 | -10/Mines | Entered Materials 2163 | -9/Materials | Evolved 2 slots: Utility x2 2713 | -9/Materials | Discovered new exit (range 10) 2827 | -9/Materials | Discovered new exit (range 16) 3129 | -9/Materials | Discovered new exit (range 12) 3186 | -9/Materials | Repaired Hrd. Light Armor Plating 3457 | -9/Materials | Build established: Scavenger-Mutant 3480 | -9/Materials | Repaired Weight Redist. System 3512 | -9/Materials | Repaired Hrd. Light Armor Plating 3539 | -9/Materials | Repaired Structural Scanner 3567 | -9/Materials | Repaired Ion Engine 3749 | -9/Materials | Core integrity fell below 50% 3763 | -9/Materials | First assault squad dispatched 3867 | -9/Materials | Central database locked down 4239 | -9/Materials | Entered Mines 4272 | -9/Mines | Learned 4 Materials zone layouts 4302 | -9/Mines | Assisted by bots powering up and referring to "LRC-V3" 4378 | -9/Mines | Found the Drone Emporium 4386 | -9/Mines | Found Prototype Device 4386 | -9/Mines | Identified Splice Drone Bay 4552 | -9/Mines | Core integrity fell below 20% 4559 | -9/Mines | Discovered new exit (range 10) 4761 | -9/Mines | Discovered new exit (range 6) 4801 | -9/Mines | A Derelict revealed a hidden shortcut to a safe place 4890 | -9/Mines | Deemed a non-threat by the Exiles lab entrance 4890 | -9/Mines | Discovered new exit (range 6) 4901 | -9/Mines | Entered Exiles 4901 | -9/Exiles | Accompanied by 1 ally 4926 | -9/Exiles | Met 8R-AWN 4943 | -9/Exiles | Met EX-HEX 4983 | -9/Exiles | Met EX-DEC 5023 | -9/Exiles | Visited The Gauntlet 5196 | -9/Exiles | Met EX-BIN 5217 | -9/Exiles | Aligned with FarCom system 5218 | -9/Exiles | Given EX-Vault access code 5241 | -9/Exiles | Opened EX-Vault 5252 | -9/Exiles | Found Skeleton Box 5308 | -9/Exiles | Warned to stay clear of 0b10 Research branches 5426 | -9/Exiles | Discovered new exit (range 14) 5442 | -9/Exiles | Left Exiles lab with Skeleton Box 5442 | -9/Exiles | Entered Mines 5442 | -8/Mines | Accompanied by 1 ally 5535 | -8/Mines | Discovered new exit (range 60) 5539 | -8/Mines | Discovered new exit (range 68) 5967 | -8/Mines | Entered Materials 5967 | -8/Materials | Accompanied by 1 ally 5967 | -8/Materials | Evolved 2 slots: Utility x1, Weapon x1 5968 | -8/Materials | Identified exit to Factory 6431 | -8/Materials | Build established: Scavenger-Skirmisher 7039 | -8/Materials | Discovered exit to Factory (range 3) 7178 | -8/Materials | Discovered exit to Factory (range 4) 7474 | -8/Materials | Identified exit to Garrison 7796 | -8/Materials | Lost 3 parts (2u1w) 8225 | -8/Materials | Repaired Rocket Launcher 8488 | -8/Materials | Entered Garrison 8488 | -8/Garrison | Accompanied by 2 allies 8625 | -8/Garrison | Triggered checkpoint 8687 | -8/Garrison | Build established: Skirmisher 8706 | -8/Garrison | Triggered checkpoint 8743 | -8/Garrison | Triggered checkpoint 8807 | -8/Garrison | Spotted B-75 Beast 8807 | -8/Garrison | Spotted B-75 Beast 8872 | -8/Garrison | Triggered checkpoint 9071 | -8/Garrison | Discovered new exit (range 15) 9103 | -8/Garrison | Identified exit to Materials 9231 | -8/Garrison | Build established: Mutant 9282 | -8/Garrison | Discovered exit to Materials (range 13) 9631 | -8/Garrison | Discovered exit to Materials (range 13) 9677 | -8/Garrison | Phase Generator disabled 9970 | -8/Garrison | Triggered checkpoint 10041 | -8/Garrison | Build established: Skirmisher 10460 | -8/Garrison | Triggered checkpoint 11157 | -8/Garrison | Attempted to access garrison exit controls, blocked by remote lockdown 11301 | -8/Garrison | Attempted to access garrison exit controls, blocked by remote lockdown 11432 | -8/Garrison | Entered Materials 11832 | -8/Materials | First assault squad dispatched 12497 | -8/Materials | Discovered exit to Factory (range 15) 12656 | -8/Materials | Entered Factory 12656 | -7/Factory | Evolved 2 slots: Utility x2 12657 | -7/Factory | Identified exit to Storage 12922 | -7/Factory | Build established: Mutant 13347 | -7/Factory | Build established: Gunner 13738 | -7/Factory | Discovered new exit (range 7) 13769 | -7/Factory | Build established: Mutant 13815 | -7/Factory | Identified exit to Lower Caves 14062 | -7/Factory | Discovered new exit (range 12) 14195 | -7/Factory | Discovered new exit (range 19) 14228 | -7/Factory | Identified exit to Factory 14718 | -7/Factory | Repaired System Restoration Module 15856 | -7/Factory | First assault squad dispatched 16478 | -7/Factory | Destroyed 7 combat bots 16566 | -7/Factory | Repaired Arm. Huge Wheel 16680 | -7/Factory | Entered Lower Caves 16721 | -7/Lower Caves | Learned Armory security intel 16721 | -7/Lower Caves | Learned Research security intel 16721 | -7/Lower Caves | Learned Research stockpile data 16721 | -7/Lower Caves | Learned location of 1 exit from Factory 17514 | -7/Lower Caves | Attracted the attention of an 0b10 checkpoint 17982 | -7/Lower Caves | Discovered new exit (range 8) 18001 | -7/Lower Caves | Learned location of 1 exit from Factory 18071 | -7/Lower Caves | Build established: Skirmisher 18470 | -7/Lower Caves | Build established: Mutant 20178 | -7/Lower Caves | Identified exit to Lower Caves 21073 | -7/Lower Caves | Attracted the attention of an 0b10 outpost 21116 | -7/Lower Caves | Core integrity fell below 50% 21128 | -7/Lower Caves | Lost 3 parts (1p1u1w) 21138 | -7/Lower Caves | Destroyed 7 combat bots 21438 | -7/Lower Caves | Build established: Commander-Mutant 21439 | -7/Lower Caves | Entered another Lower Caves area 21439 | -7/Lower Caves | Accompanied by 5 allies 21752 | -7/Lower Caves | Encountered a Warlord checkpoint 21819 | -7/Lower Caves | Learned Factory trap positions 21862 | -7/Lower Caves | Learned Factory machine intel 22737 | -7/Lower Caves | Attracted the attention of an 0b10 checkpoint 22876 | -7/Lower Caves | Discovered new exit (range 14) 22915 | -7/Lower Caves | Identified exit to Zion 23647 | -7/Lower Caves | Build established: Commander-Skirmisher 24136 | -7/Lower Caves | Build established: Commander-Assassin 24934 | -7/Lower Caves | Entered Zion 24934 | -7/Zion | Accompanied by 5 allies 24944 | -7/Zion | Build established: Hauler-Assassin 25121 | -7/Zion | Discovered new exit (range 19) 25250 | -7/Zion | System corruption cleaned by Quarantine Array 25355 | -7/Zion | Learned Factory terminal intel 25440 | -7/Zion | Found Prototype Hackware 25443 | -7/Zion | Found Prototype Processor 25446 | -7/Zion | Found Prototype Processor 25586 | -7/Zion | Identified Exp. System Shield 25588 | -7/Zion | Identified Exp. Melee Analysis Suite 25590 | -7/Zion | Identified Exp. Terrain Scan Processor 25712 | -7/Zion | Learned location of Data Miner (-6) 26055 | -7/Zion | Learned location of Warlord (-5) 26069 | -7/Zion | Build established: Hauler-Mutant 26117 | -7/Zion | Given the Hacking Drone Bay 26117 | -7/Zion | Found Prototype Device 26232 | -7/Zion | Given A8's code to call for help 26547 | -7/Zion | Rebuked by Imprinter 26755 | -7/Zion | Remotely autohacked Sealed Blast Doors 26766 | -7/Zion | Remotely autohacked Sealed Blast Doors 26766 | -7/Zion | Remotely autohacked Sealed Blast Doors 26766 | -7/Zion | Remotely autohacked Sealed Blast Doors 26789 | -7/Zion | Discovered new exit (range 5) 26791 | -7/Zion | Saw the warning signs outside the Deep Caves entrance 30404 | -7/Zion | Identified exit to Deep Caves 30407 | -7/Zion | Entered Deep Caves 30407 | -7/Deep Caves | Accompanied by 5 allies 30410 | -7/Deep Caves | Met 5H-AD0 31056 | -7/Deep Caves | Z-Facility disabled 31181 | -7/Deep Caves | Attacked by Z-Imprinter 31230 | -7/Deep Caves | Core integrity fell below 20% 31243 | -7/Deep Caves | Destroyed Z-Imprinter 31270 | -7/Deep Caves | Lost 8 parts (1p1n4u2w) 31490 | -7/Deep Caves | Build established: Commander-Mutant 31856 | -7/Deep Caves | Discovered new exit (range 6) 31865 | -7/Deep Caves | Spotted as-71598 31874 | -7/Deep Caves | Spotted as-68535 32214 | -7/Deep Caves | Build established: Scavenger-Mutant 32418 | -7/Deep Caves | Found Prototype Protection 32554 | -7/Deep Caves | Build established: Commander-Mutant 32996 | -7/Deep Caves | Destroyed by as-71598 with Assembled Focal Cannon Last Messages --------------- 32418_ Acquired Prototype Protection. 32533_ Dropped Hvy. Flail. 32583_ Acquired Gauss Rifle. 32644_ Slug penetrates G2-N1L(M). 32662_ Dropped Gauss Rifle. 32705_ Acquired Zio. Laser-M. 32757_ Dropped Zio. Laser-M. 32758_ Acquired Hvy. Flail. 32804_ Dropped Hvy. Flail. 32808_ Acquired Gauss Rifle. 32833_ Dropped Gauss Rifle. 32879_ Acquired Hvy. Missile Launcher. 32964_ Dropped Hvy. Missile Launcher. 32965_ Acquired Hvy. Flail. 32980_ as-71598: "DSI9AT1D G8OHIBQ29FWG 26R186 QD12WHW8W33 TDK1 81FTS" 32986_ as-71598 suffers critical hit (Smash). 32987_ Zio. Glidesys II destroyed. 32990_ Lgt. EM Pulse Cannon destroyed. 32990_ Zio. Light Carapace destroyed. 32996_ Exp. Reaction Control System destroyed. Map ----- +----------------------------------------------------+ | ????????# [ ###### ## ## | | ????????# #?# ######? | | ????????# [ [ ###?# ##?????? | | ????????# [ [ ##??## ##?????? | | ????????# [ #???# ##????? | | ????????# #???# #????? | | ????????# #??## #????? | | ????????# * * #?## #?#### | | ????????"" = ! #?# ##### # | | ?????????" ! ! ! #?# ##?# | | ?????????" #?## ##?# | | ?????????" = ##?# #### ## | | ????????"" ! ! #?# ### #? | | ????????# ! #?## ## ## | | ????????" !!! #??# # | | ????????" #### # | | ????????" #### # | | ????????""" #??#### | | ????????" ! #?????? | | ????????"" #######?????? | | ????????" l #???????????? | | ????????"" ##???????????? | | ????????" # # #????????????? | | ????????" #### ##["# ##????????????? | | ????????""" ####G; ## ####?????????????? | | ?????????" [ ]@###"" #????????????????? | | ?????????#########;## ###????????????????? | | | | | | | | | | | | | | | | | | | | | | | | | | | | | | | | | | | | | | | | | | | | | | | +----------------------------------------------------+ Best States ------------- Heat Dissipation 60 Energy Generation 27 Energy Capacity 290 Matter Stores 300 Matter Capacity 300 Sight Range 23 Robot Scan Range 15 Terrain Scan Range 16 Terrain Scan Density 1010 Additional Mass Support 6 EM Shielding 2 Armor Coverage 400 Resistance: TH 20 Evasion (%) 67 Targeting Accuracy 8 Core Analysis 6 Armor Integrity Analysis 40 Salvage Targeting 2 Offensive Hacking 10 Defensive Hacking 10 Trap Extractor Capacity 4 Item Schematics ----------------- Weight Redist. System | -8/Materials | Scanalyzed Robot Schematics ------------------ None Fabricated ------------ Nothing Alien Tech Used ----------------- None Achievements -------------- None Challenges ------------ None Game ------ Seed DisposableTargetFrame Manual? 0 Play Time 05:11:42 Cumulative 481.0 hours Start 2022.05.02 @ 20:13:46 End 2022.05.05 @ 14:26:16 Sessions 9 Manual Loads 0 Difficulty Rogue Special Mode None Game No. 113 Rogue 90 Adventurer 23 Explorer 0 Win Type - Total 19 Types 14/0/2/1/1/0/0/1/0 Lore% 89 Gallery% 90 Achievement% 80 Wizard Run 0 Options --------- ASCII 0 Keyboard 0 Movement Mouse Keybinds 0 Fullscreen 1 Font 18/SmallcapsGlow Map View 76x50 Tactical HUD 1 Map Filters NONE Filters NONE Steam 1 RUN: cc9f4a6c-1104-45a4-b554-213de44e5fd7